fUST/lending_fUST_20251130
["ID","MTS","AMOUNT","RATE_DAILY","PERIOD"]
[395113509,1764447058180,-1180.16615708,0.00014368,2]
[395113510,1764447058189,-1500.0,0.00014368,2]
[395113511,1764447058198,-1500.0,0.00014368,2]
[395113512,1764447058207,-613.16489191,0.00014368,2]
[395113513,1764447058216,-1500.0,0.00014368,2]
[395113514,1764447058225,-1012.57772057,0.00014368,2]
[395113515,1764447058234,-501.77228017,0.00014368,2]
[395113516,1764447058243,-1500.0,0.00014368,2]
[395113517,1764447058253,-1500.0,0.00014368,2]
[395113518,1764447058262,-570.4328769,0.00014368,2]
[395113519,1764447058271,-1500.0,0.00014368,2]
[395113520,1764447058281,-1500.0,0.00014368,2]
[395113521,1764447058289,-1500.0,0.00014368,2]
[395113522,1764447058299,-1500.0,0.00014368,2]
[395113523,1764447058308,-1500.0,0.00014368,2]
[395113524,1764447058317,-162.94277513,0.00014368,2]
[395113525,1764447058326,-1539.01230034,0.00014368,2]
[395113526,1764447058335,-1500.0,0.00014368,2]
[395113527,1764447058344,-1500.0,0.00014368,2]
[395113528,1764447058354,-601.48091225,0.00014368,2]
[395113529,1764447058368,-898.51908775,0.00014368,2]
[395113530,1764447058378,-1500.0,0.00014368,2]
[395113531,1764447058388,-1500.0,0.00014368,2]
[395113532,1764447058397,-815.50671793,0.00014368,2]
[395113533,1764447058407,-1500.0,0.00014368,2]
[395113534,1764447058417,-1500.0,0.00014368,2]
[395113535,1764447058427,-1500.0,0.00014368,2]
[395113536,1764447058436,-950.11863188,0.00014368,2]
[395113537,1764447058445,-1500.0,0.00014368,2]
[395113538,1764447058456,-1500.0,0.00014368,2]
[395113539,1764447058465,-504.82130786,0.00014368,2]
[395113540,1764447058475,-3153.09375041,0.00014384,2]
[395113541,1764447058484,-2676.14560445,0.00014424,2]
[395113542,1764447058494,-500.0,0.00014471,2]
[395113543,1764447058505,-500.0,0.00014489,2]
[395113544,1764447058515,-1053.92,0.0001452,2]
[395113545,1764447058525,-500.0,0.0001452,2]
[395113546,1764447058534,-500.0,0.0001452,2]
[395113547,1764447058543,-573.67,0.0001452,2]
[395113548,1764447058553,-642.5109676,0.0001452,2]
[395113549,1764447058563,-500.0,0.0001452,2]
[395113550,1764447058572,-500.0,0.0001452,2]
[395113551,1764447058581,-500.0,0.0001452,2]
[395113552,1764447058590,-500.0,0.0001452,2]
[395113553,1764447058604,-1369.42,0.0001452,2]
[395113554,1764447058614,-500.0,0.0001452,2]
[395113555,1764447058623,-500.0,0.0001452,2]
[395113556,1764447058633,-500.0,0.0001452,2]
[395113557,1764447058645,-500.0,0.0001452,2]
[395113558,1764447058655,-500.0,0.0001452,2]
[395113559,1764447058665,-491.38093516,0.0001452,2]
[395113560,1764447058675,-500.0,0.0001452,2]
[395113561,1764447058684,-500.0,0.0001452,2]
[395113562,1764447058693,-500.0,0.0001452,2]
[395113563,1764447058703,-500.0,0.0001452,2]
[395113564,1764447058712,-500.0,0.0001452,2]
[395113565,1764447058721,-562.93,0.0001452,2]
[395113566,1764447058731,-500.0,0.0001452,2]
[395113567,1764447058740,-500.0,0.0001452,2]
[395113568,1764447058749,-500.0,0.0001452,2]
[395113569,1764447058759,-450.69511991,0.0001452,2]
[395113570,1764447058768,-500.0,0.0001452,2]
[395113571,1764447058777,-571.32,0.0001452,2]
[395113572,1764447058787,-744.23,0.0001452,2]
[395113573,1764447058796,-714.73,0.0001452,2]
[395113574,1764447058805,-500.0,0.0001452,2]
[395113575,1764447058815,-500.0,0.0001452,2]
[395113576,1764447058825,-518.25,0.0001452,2]
[395113577,1764447058834,-500.0,0.0001452,2]
[395113578,1764447058843,-500.0,0.0001452,2]
[395113579,1764447058852,-500.0,0.0001452,2]
[395113580,1764447058862,-500.0,0.0001452,2]
[395113581,1764447058871,-500.0,0.0001452,2]
[395113582,1764447058880,-500.0,0.0001452,2]
[395113583,1764447058889,-500.0,0.0001452,2]
[395113584,1764447058899,-789.43,0.0001452,2]
[395113585,1764447058908,-1818.26,0.0001452,2]
[395113586,1764447058917,-500.0,0.0001452,2]
[395113587,1764447058926,-500.0,0.0001452,2]
[395113588,1764447058935,-500.0,0.0001452,2]
[395113589,1764447058944,-500.0,0.0001452,2]
[395113590,1764447058954,-500.0,0.0001452,2]
[395113591,1764447058963,-500.0,0.0001452,2]
[395113592,1764447058972,-510.98,0.0001452,2]
[395113593,1764447058981,-540.58,0.0001452,2]
[395113594,1764447058989,-500.0,0.0001452,2]
[395113595,1764447058997,-1181.02,0.0001452,2]
[395113596,1764447059006,-533.75,0.0001452,2]
[395113597,1764447059014,-500.0,0.0001452,2]
[395113598,1764447059024,-500.0,0.0001452,2]
[395113599,1764447059033,-500.0,0.0001452,2]
[395113600,1764447059042,-500.0,0.0001452,2]
[395113601,1764447059052,-500.0,0.0001452,2]
[395113602,1764447059061,-500.0,0.0001452,2]
[395113603,1764447059070,-500.0,0.0001452,2]
[395113604,1764447059079,-500.0,0.0001452,2]
[395113605,1764447059088,-949.26,0.0001452,2]
[395113606,1764447059098,-500.0,0.0001452,2]
[395113607,1764447059107,-745.92,0.0001452,2]
[395113608,1764447059116,-500.0,0.0001452,2]
[395113609,1764447059125,-500.0,0.0001452,2]
[395113610,1764447059135,-424.9149897,0.0001452,2]
[395113611,1764447059145,-500.0,0.0001452,2]
[395113612,1764447059155,-500.0,0.0001452,2]
[395113613,1764447059164,-500.0,0.0001452,2]
[395113614,1764447059172,-500.0,0.0001452,2]
[395113615,1764447059180,-500.0,0.0001452,2]
[395113616,1764447059189,-500.0,0.0001452,2]
[395113617,1764447059200,-500.0,0.0001452,2]
[395113618,1764447059210,-500.0,0.0001452,2]
[395113619,1764447059221,-500.0,0.0001452,2]
[395113620,1764447059232,-500.0,0.0001452,2]
[395113621,1764447059243,-500.0,0.0001452,2]
[395113622,1764447059254,-907.07,0.0001452,2]
[395113623,1764447059263,-604.62,0.0001452,2]
[395113624,1764447059273,-500.0,0.0001452,2]
[395113625,1764447059284,-500.0,0.0001452,2]
[395113626,1764447059293,-5933.31,0.0001452,2]
[395113627,1764447059303,-642.19,0.0001452,2]
[395113628,1764447059313,-500.0,0.0001452,2]
[395113629,1764447059324,-1451.25,0.0001452,2]
[395113630,1764447059334,-1551.34,0.0001452,2]
[395113631,1764447059344,-980.94,0.0001452,2]
[395113632,1764447059354,-861.84,0.0001452,2]
[395113633,1764447059363,-500.0,0.0001452,2]
[395113634,1764447059372,-500.0,0.0001452,2]
[395113635,1764447059383,-1422.36,0.0001452,2]
[395113636,1764447059393,-500.0,0.0001452,2]
[395113637,1764447059403,-334.63178309,0.0001452,2]
[395113638,1764447059413,-500.0,0.0001452,2]
[395113639,1764447059423,-500.0,0.0001452,2]
[395113640,1764447059432,-500.0,0.0001452,2]
[395113641,1764447059442,-553.03206313,0.0001452,2]
[395113642,1764447059455,-605.70793687,0.0001452,2]
[395113643,1764447059464,-110.5388004,0.0001452,2]
[395113644,1764447059720,-1469.061061,0.00010959,2]
[395113645,1764447059732,-317.0,0.00011345,2]
[395113646,1764447059743,-500.0,0.00013699,2]
[395113647,1764447059754,-1000.0,0.00014247,2]
[395113648,1764447059765,-393.6111996,0.0001452,2]
[395113649,1764447059774,-253.7307809,0.0001452,2]
[395113650,1764447059783,-500.0,0.0001452,2]
[395113651,1764447059795,-500.0,0.0001452,2]
[395113652,1764447059804,-1853.84,0.0001452,2]
[395113653,1764447059814,-514.33,0.0001452,2]
[395113654,1764447059824,-500.0,0.0001452,2]
[395113655,1764447059834,-500.0,0.0001452,2]
[395113656,1764447059844,-1083.76,0.0001452,2]
[395113657,1764447059854,-500.0,0.0001452,2]
[395113658,1764447059864,-1104.96,0.0001452,2]
[395113659,1764447059873,-500.0,0.0001452,2]
[395113660,1764447059883,-707.97,0.0001452,2]
[395113661,1764447059894,-939.05,0.0001452,2]
[395113662,1764447059904,-500.0,0.0001452,2]
[395113663,1764447059914,-3619.92,0.0001452,2]
[395113664,1764447059924,-6559.69,0.0001452,2]
[395113665,1764447059934,-500.0,0.0001452,2]
[395113666,1764447059943,-500.0,0.0001452,2]
[395113667,1764447059952,-649.66,0.0001452,2]
[395113668,1764447060080,-1214.71,0.0001452,2]
[395113669,1764447060090,-550.29,0.0001452,2]
[395113670,1764447060100,-500.0,0.0001452,2]
[395113671,1764447060109,-5758.61,0.0001452,2]
[395113672,1764447060118,-3790.56449733,0.0001452,2]
[395113673,1764447060141,-873.07550267,0.0001452,2]
[395113674,1764447060151,-473.61378354,0.0001452,2]
[395113675,1764447060160,-259.74471247,0.0001452,2]
[395113676,1764447060494,-593.892524,0.00010959,2]
[395113677,1764447060504,-593.892524,0.00010959,2]
[395113678,1764447060514,-593.892524,0.00010959,2]
[395113679,1764447060524,-593.892524,0.00010959,2]
[395113680,1764447060533,-500.0,0.00013699,2]
[395113681,1764447060543,-1000.0,0.00014247,2]
[395113682,1764447060552,-240.25528753,0.0001452,2]
[395113683,1764447060561,-500.0,0.0001452,2]
[395113684,1764447060571,-500.0,0.0001452,2]
[395113685,1764447060581,-361.76643427,0.0001452,2]
[395113686,1764447060626,-138.23356573,0.0001452,2]
[395113687,1764447060635,-222.46639427,0.0001452,2]
[395113688,1764447075824,338.96600132,0.00010741,2]
[395113689,1764447097690,600.77423013,8.907e-05,2]
[395113690,1764447097855,209.71722574,9.232e-05,2]
[395113692,1764447128603,295.67013345,8.907e-05,2]
[395113693,1764447136400,209.86151553,9.232e-05,2]
[395113694,1764447143294,2453.29089707,0.00010705,2]
[395113695,1764447152398,209.86165982,9.232e-05,2]
[395113696,1764447152695,297.85407557,8.907e-05,2]
[395113697,1764447153838,169.764029,5.84e-05,2]
[395113698,1764447154044,169.764029,8.761e-05,2]
[395113699,1764447168597,208.66127569,8.907e-05,2]
[395113700,1764447238614,4047.21847288,0.00010741,2]
[395113701,1764447238637,1042.19774464,0.00010741,2]
[395113703,1764447912143,967.56967367,9.232e-05,2]
[395113704,1764447977037,853.77117218,8.907e-05,2]
[395113705,1764447977676,853.77117218,0.00010491,2]
[395113706,1764448027711,-313.2000251,0.00010867,2]
[395113708,1764448039126,-456.4980665,0.00011195,2]
[395113709,1764448039148,-169.764029,0.00011681,2]
[395113710,1764448039170,-185.918033,0.00011744,2]
[395113711,1764448039190,-277.60636716,0.00012074,2]
[395113712,1764448089252,422.96449123,0.00010618,2]
[395113713,1764448104214,288.08882744,0.0001,2]
[395113715,1764448113870,1000.0,0.0001,2]
[395113716,1764448120664,8288.95668133,0.0001,2]
[395113717,1764448120690,6711.04331867,0.0001,2]
[395113720,1764448199375,829.50338257,9.232e-05,2]
[395113796,1764448238048,-425.22635936,0.00011791,2]
[395113798,1764448238058,-309.9360246,0.00011851,2]
[395113800,1764448238068,-1200.0,0.00011909,2]
[395113802,1764448238077,-9063.7633175,0.0001191,2]
[395113804,1764448238087,-170.0,0.00011952,2]
[395113806,1764448238096,-300.0,0.00011952,2]
[395113808,1764448238105,-399.37525264,0.00011953,2]
[395113811,1764448238124,-853.77117218,0.00012074,2]
[395113813,1764448238136,-990.0,0.00012075,2]
[395113815,1764448238146,-759.866,0.00012075,2]
[395113818,1764448238156,-2153.0,0.00012075,2]
[395113820,1764448238166,-414.0,0.00012075,2]
[395113822,1764448238176,-500.0,0.00012228,2]
[395113824,1764448238186,-390.06793594,0.00012228,2]
[395113826,1764448238196,-500.0,0.00012228,2]
[395113828,1764448238206,-500.0,0.00012228,2]
[395113830,1764448238216,-500.0,0.00012228,2]
[395113832,1764448238227,-500.0,0.00012228,2]
[395113834,1764448238237,-500.0,0.00012228,2]
[395113836,1764448238246,-419.20862038,0.00012228,2]
[395113838,1764448238256,-500.0,0.00012228,2]
[395113840,1764448238266,-500.0,0.00012228,2]
[395113842,1764448238276,-500.0,0.00012228,2]
[395113844,1764448238286,-500.0,0.00012228,2]
[395113846,1764448238296,-500.0,0.00012228,2]
[395113848,1764448238306,-288.78383376,0.00012228,2]
[395113850,1764448238317,-500.0,0.00012228,2]
[395113853,1764448238327,-500.0,0.00012228,2]
[395113855,1764448238337,-500.0,0.00012228,2]
[395113857,1764448238348,-500.0,0.00012228,2]
[395113858,1764448238360,-500.0,0.00012228,2]
[395113860,1764448238371,-280.23643254,0.00012228,2]
[395113863,1764448238382,-500.0,0.00012228,2]
[395113864,1764448238392,-500.0,0.00012228,2]
[395113867,1764448238402,-500.0,0.00012228,2]
[395113869,1764448238411,-500.0,0.00012228,2]
[395113871,1764448238422,-500.0,0.00012228,2]
[395113872,1764448238432,-500.0,0.00012228,2]
[395113875,1764448238442,-500.0,0.00012228,2]
[395113877,1764448238452,-500.0,0.00012228,2]
[395113879,1764448238461,-500.0,0.00012228,2]
[395113881,1764448238472,-376.56499266,0.00012228,2]
[395113883,1764448238483,-500.0,0.00012228,2]
[395113885,1764448238493,-500.0,0.00012228,2]
[395113887,1764448238502,-500.0,0.00012228,2]
[395113889,1764448238512,-500.0,0.00012228,2]
[395113891,1764448238522,-500.0,0.00012228,2]
[395113893,1764448238531,-500.0,0.00012228,2]
[395113895,1764448238541,-500.0,0.00012228,2]
[395113897,1764448238551,-500.0,0.00012228,2]
[395113899,1764448238562,-500.0,0.00012228,2]
[395113901,1764448238571,-158.15217224,0.00012228,2]
[395113903,1764448238582,-500.0,0.00012228,2]
[395113905,1764448238591,-500.0,0.00012228,2]
[395113907,1764448238601,-500.0,0.00012228,2]
[395113909,1764448238610,-500.0,0.00012228,2]
[395113911,1764448238620,-500.0,0.00012228,2]
[395113913,1764448238630,-500.0,0.00012228,2]
[395113915,1764448238641,-500.0,0.00012228,2]
[395113917,1764448238651,-500.0,0.00012228,2]
[395113919,1764448238661,-500.0,0.00012228,2]
[395113921,1764448238671,-500.0,0.00012228,2]
[395113923,1764448238681,-537.30949461,0.00012228,2]
[395113925,1764448238691,-500.0,0.00012228,2]
[395113927,1764448238702,-500.0,0.00012228,2]
[395113930,1764448238712,-500.0,0.00012228,2]
[395113932,1764448238722,-500.0,0.00012228,2]
[395113934,1764448238732,-500.0,0.00012228,2]
[395113936,1764448238743,-500.0,0.00012228,2]
[395113938,1764448238753,-500.0,0.00012228,2]
[395113940,1764448238763,-500.0,0.00012228,2]
[395113942,1764448238774,-500.0,0.00012228,2]
[395113944,1764448238784,-500.0,0.00012228,2]
[395113946,1764448238795,-500.0,0.00012228,2]
[395113948,1764448238805,-387.34827447,0.00012228,2]
[395113950,1764448238815,-500.0,0.00012228,2]
[395113952,1764448238825,-181.80650577,0.00012228,2]
[395113954,1764448238834,-500.0,0.00012228,2]
[395113957,1764448238846,-500.0,0.00012228,2]
[395113959,1764448238855,-500.0,0.00012228,2]
[395113961,1764448238864,-500.0,0.00012228,2]
[395113963,1764448238873,-500.0,0.00012228,2]
[395113965,1764448238883,-500.0,0.00012228,2]
[395113967,1764448238893,-500.0,0.00012228,2]
[395113969,1764448238902,-500.0,0.00012228,2]
[395113971,1764448238911,-500.0,0.00012228,2]
[395113973,1764448238921,-500.0,0.00012228,2]
[395113975,1764448238931,-500.0,0.00012228,2]
[395113977,1764448238940,-500.0,0.00012228,2]
[395113979,1764448238954,-500.0,0.00012228,2]
[395113981,1764448238964,-500.0,0.00012228,2]
[395113983,1764448238975,-500.0,0.00012228,2]
[395113985,1764448238985,-500.0,0.00012228,2]
[395113987,1764448238995,-500.0,0.00012228,2]
[395113989,1764448239006,-500.0,0.00012228,2]
[395113991,1764448239017,-500.0,0.00012228,2]
[395113993,1764448239026,-147456.86192478,0.00012229,2]
[395113996,1764448239041,-4120.29028242,0.00012229,2]
[395114113,1764448240178,-650.76259487,0.00012229,2]
[395114114,1764448240192,-3800.012445,0.00012229,2]
[395114219,1764448246536,-3501.65860846,0.00012229,2]
[395114220,1764448386138,7421.1624977,0.00011073,2]
[395114221,1764448440853,300.0,0.00011056,2]
[395114222,1764448463158,300.0,0.00011056,2]
[395114223,1764448485994,300.0,0.00011056,2]
[395114224,1764448500803,849.34411973,9.232e-05,2]
[395114225,1764448500825,146.19263335,9.232e-05,2]
[395114226,1764448508541,265.36274199,0.00011056,2]
[395114227,1764448590945,1500.0,0.00011066,2]
[395114228,1764448797962,796.66828351,9.232e-05,2]
[395114229,1764448812143,212.1219231,0.00011059,2]
[395114230,1764448828054,7079.66441805,0.00011059,2]
[395114231,1764448828091,925.09914245,0.00011059,2]
[395114232,1764448841165,431.4736751,0.00011059,2]
[395114233,1764448882740,342.12306119,8.907e-05,2]
[395114234,1764448883354,342.12306119,0.00010351,2]
[395114235,1764448973157,999.0,0.00011046,2]
[395114241,1764449377038,10000.01,0.00010715,2]
[395114242,1764449377060,10000.01,0.00010715,2]
[395114243,1764449377083,10000.01,0.00010715,2]
[395114244,1764449377106,10000.01,0.00010715,2]
[395114245,1764449377129,5616.2139464,0.00010715,2]
[395114276,1764449432073,-393.189,0.00011168,2]
[395114278,1764449432082,-300.0,0.00011168,2]
[395114280,1764449432092,-1200.0,0.00011168,2]
[395114283,1764449432101,-306.73730411,0.00011168,2]
[395114285,1764449432111,-184.38507283,0.00011168,2]
[395114287,1764449432119,-6886.68862306,0.00011169,2]
[395114289,1764449432130,-12198.99579985,0.00011169,2]
[395114401,1764449438213,-13546.47359889,0.00011169,2]
[395114403,1764449438225,-176.622132,0.00011744,2]
[395114405,1764449438234,-342.12306119,0.00011796,2]
[395114407,1764449438243,-500.0,0.0001181,2]
[395114409,1764449438252,-615.25661051,0.0001181,2]
[395114410,1764449438262,-239.7946858,0.0001181,2]
[395114413,1764449438271,-364.47071473,0.0001181,2]
[395114414,1764449438280,-500.0,0.0001181,2]
[395114416,1764449438290,-500.0,0.0001181,2]
[395114418,1764449438299,-500.0,0.0001181,2]
[395114420,1764449438308,-500.0,0.0001181,2]
[395114422,1764449438317,-500.0,0.0001181,2]
[395114424,1764449438327,-500.0,0.0001181,2]
[395114426,1764449438336,-500.0,0.0001181,2]
[395114428,1764449438345,-500.0,0.0001181,2]
[395114430,1764449438354,-500.0,0.0001181,2]
[395114432,1764449438363,-500.0,0.0001181,2]
[395114434,1764449438373,-500.0,0.0001181,2]
[395114436,1764449438382,-500.0,0.0001181,2]
[395114438,1764449438391,-500.0,0.0001181,2]
[395114440,1764449438400,-500.0,0.0001181,2]
[395114442,1764449438410,-500.0,0.0001181,2]
[395114444,1764449438419,-500.0,0.0001181,2]
[395114446,1764449438427,-538.73482744,0.0001181,2]
[395114448,1764449438437,-468.18065057,0.0001181,2]
[395114450,1764449438446,-500.0,0.0001181,2]
[395114452,1764449438455,-500.0,0.0001181,2]
[395114454,1764449438464,-1396.73405565,0.00011833,2]
[395114456,1764449438472,-178.65,0.00011988,3]
[395114458,1764449438482,-178.65,0.00011988,3]
[395114460,1764449438491,-157.59380923,0.00011998,2]
[395114635,1764449440231,-472.40619077,0.00011998,2]
[395114637,1764449440240,-2153.0,0.00011998,2]
[395114639,1764449440249,-990.0,0.00011998,2]
[395114641,1764449440258,-3000.0,0.00012054,2]
[395114643,1764449440268,-273.04755515,0.00012128,2]
[395114645,1764449440277,-500.0,0.00012128,2]
[395114647,1764449440286,-500.0,0.00012128,2]
[395114649,1764449440295,-500.0,0.00012128,2]
[395114651,1764449440303,-493.44603426,0.00012128,2]
[395114653,1764449440312,-500.0,0.00012128,2]
[395114655,1764449440322,-500.0,0.00012128,2]
[395114657,1764449440331,-500.0,0.00012128,2]
[395114658,1764449440340,-500.0,0.00012128,2]
[395114660,1764449440350,-500.0,0.00012128,2]
[395114662,1764449440359,-500.0,0.00012128,2]
[395114664,1764449440368,-500.0,0.00012128,2]
[395114666,1764449440377,-463.59549486,0.00012128,2]
[395114668,1764449440385,-9386.84640698,0.00012129,2]
[395115201,1764449446182,-326.3384012,0.00012129,2]
[395115202,1764449446380,-572.20063814,0.00012129,2]
[395115822,1764449697969,637.52578896,9.232e-05,2]
[395115840,1764450071182,228.46205086,8.907e-05,2]
[395115841,1764450436112,-300.0,0.00011548,2]
[395115842,1764450436133,-303.60255803,0.00011607,2]
[395115843,1764450436155,-27.82342823,0.00011665,2]
[395115844,1764450564086,-300.0,0.00011234,2]
[395115845,1764450564108,-1274.30531871,0.00011235,2]
[395115846,1764450573969,203.8110252,0.00010827,2]
[395115884,1764450632392,-300.0,0.00011234,2]
[395115886,1764450632402,-952.0,0.00011234,2]
[395115888,1764450632412,-1117.53982703,0.00011235,2]
[395115890,1764450632421,-3444.25700986,0.00011235,2]
[395115892,1764450632432,-4683.32846916,0.00011235,2]
[395115894,1764450632441,-4926.70898502,0.00011235,2]
[395115896,1764450632450,-2062.05690894,0.00011235,2]
[395115899,1764450632462,-3899.26096293,0.00011235,2]
[395115901,1764450632474,-7094.46093842,0.00011235,2]
[395115903,1764450632483,-862.57809868,0.00011235,2]
[395116017,1764450638467,-980.27895504,0.00011235,2]
[395116018,1764450638478,-397.54104496,0.00011235,2]
[395116019,1764450638489,-6077.41394781,0.00011235,2]
[395116020,1764450638499,-1081.91973028,0.00011548,2]
[395116021,1764450638508,-615.41498083,0.00011665,2]
[395116022,1764450638517,-552.02007229,0.00011665,2]
[395116023,1764450638527,-336.42766758,0.00011666,2]
[395116198,1764450640516,-1041.02575365,0.00011666,2]
[395116506,1764450898657,510.17360677,9.232e-05,2]
[395116508,1764451037907,3238.13618138,0.00010674,2]
[395116509,1764451040236,3853.6496704,0.00010674,2]
[395116510,1764451042626,2194.23951625,0.00010674,2]
[395116511,1764451042648,2328.44655526,0.00010674,2]
[395116512,1764451045017,5245.24538471,0.00010674,2]
[395116513,1764451047229,2426.31806003,0.00010674,2]
[395116514,1764451047253,3595.00954997,0.00010674,2]
[395116515,1764451049625,6405.00045003,0.00010674,2]
[395116516,1764451049647,445.93229735,0.00010674,2]
[395116517,1764451051749,7734.06079685,0.00010674,2]
[395116518,1764451054065,1820.0169058,0.00010674,2]
[395116519,1764451054086,6850.6948526,0.00010674,2]
[395116520,1764451054567,640.53206532,0.00010849,2]
[395116521,1764451056135,2508.78308208,0.00010674,2]
[395116522,1764451056156,7152.10254997,0.00010674,2]
[395116523,1764451058818,2847.90745003,0.00010674,2]
[395116524,1764451058840,7845.97038533,0.00010674,2]
[395116525,1764451059152,213.28226656,8.907e-05,2]
[395116526,1764451061910,214.11413481,9.232e-05,2]
[395116527,1764451062299,1726.6432133,0.00010849,2]
[395116528,1764451062323,674.0085259,0.00010849,2]
[395116529,1764451070849,528.54678001,0.00010849,2]
[395116530,1764451086025,2400.6517392,0.00010849,2]
[395116531,1764451092825,164.8208306,0.0001083,2]
[395116532,1764451108707,2400.6517392,0.00010849,2]
[395116533,1764451130888,2400.6517392,0.00010849,2]
[395116534,1764451153242,1430.67864589,0.00010849,2]
[395116535,1764451153264,969.97309331,0.00010849,2]
[395116536,1764451168346,317.59421531,0.00010849,2]
[395116537,1764451176124,2400.6517392,0.00010849,2]
[395116538,1764451198360,2400.6517392,0.00010849,2]
[395116539,1764451220576,2400.6517392,0.00010849,2]
[395116540,1764451243495,1510.48747378,0.00010849,2]
[395116541,1764451243518,890.16426542,0.00010849,2]
[395116542,1764451266142,2400.6517392,0.00010849,2]
[395116543,1764451273807,294.46401495,8.907e-05,2]
[395116544,1764451288920,2400.6517392,0.00010849,2]
[395116545,1764451311064,184.60867399,0.00010804,2]
[395116546,1764451333209,184.60867399,0.00010804,2]
[395116547,1764451342557,275.96071116,0.00010674,2]
[395116548,1764451344918,490.59681985,0.00010674,2]
[395116549,1764451347369,765.79097348,0.00010674,2]
[395116550,1764451356113,184.60867399,0.00010804,2]
[395116551,1764451378671,184.60867399,0.00010804,2]
[395116552,1764451400858,184.60867399,0.00010804,2]
[395116553,1764451423495,184.60867399,0.00010804,2]
[395116554,1764451446328,184.60867399,0.00010804,2]
[395116555,1764451468707,184.60867399,0.00010804,2]
[395116556,1764451491220,184.60867399,0.00010804,2]
[395116557,1764451513430,184.60867399,0.00010804,2]
[395116558,1764451535855,184.60867399,0.00010804,2]
[395116560,1764451559309,184.60867399,0.00010804,2]
[395116561,1764451581913,184.60867399,0.00010804,2]
[395116562,1764451604176,81.81697487,0.00010804,2]
[395116563,1764451604201,102.79169912,0.00010804,2]
[395116564,1764451626534,184.60867399,0.00010804,2]
[395116565,1764451644106,-184.60867399,0.00010913,2]
[395116566,1764451644128,-308.23044132,0.00010913,2]
[395116567,1764451644148,-359.836,0.00010913,2]
[395116568,1764451644169,-237.11138035,0.00010959,2]
[395116569,1764451648847,2163.54035885,0.00010849,2]
[395116570,1764451671687,2163.54035885,0.00010849,2]
[395116572,1764451693819,2163.54035885,0.00010849,2]
[395116573,1764451730138,-756.32316061,0.00010959,2]
[395116574,1764451732252,-1000.0,0.00010959,2]
[395116575,1764451739888,-407.21719824,0.00010959,2]
[395116576,1764451739911,-302.06583249,0.00011043,2]
[395116577,1764451739932,-290.71696927,0.00011128,2]
[395116578,1764451742891,-909.28303073,0.00011128,2]
[395116579,1764451742912,-90.71696927,0.00011128,2]
[395116580,1764451745072,-209.28303073,0.00011128,2]
[395116581,1764451745094,-153.34247359,0.00011129,2]
[395116582,1764451745118,-151.0,0.00011129,2]
[395116583,1764451745139,-151.0,0.00011129,2]
[395116584,1764451745161,-151.0,0.00011129,2]
[395116585,1764451745182,-151.0,0.00011129,2]
[395116586,1764451745203,-33.37449568,0.00011129,2]
[395116587,1764451748826,-117.62550432,0.00011129,2]
[395116588,1764451748847,-151.0,0.00011129,2]
[395116589,1764451748867,-151.0,0.00011129,2]
[395116590,1764451748888,-151.0,0.00011129,2]
[395116591,1764451748908,-151.0,0.00011129,2]
[395116592,1764451748928,-151.0,0.00011129,2]
[395116593,1764451748948,-127.37449568,0.00011129,2]
[395116594,1764451751907,-23.62550432,0.00011129,2]
[395116595,1764451751930,-151.0,0.00011129,2]
[395116596,1764451751952,-151.0,0.00011129,2]